fUSD/lending_fUSD_20240222
["ID","MTS","AMOUNT","RATE_DAILY","PERIOD"]
[314842029,1708584645513,-764.96,0.00035616,2]
[314842030,1708584645523,-503.30206134,0.00035616,2]
[314842031,1708584645532,-500.0,0.00035616,2]
[314842032,1708584645543,-500.0,0.00035616,2]
[314842033,1708584645558,-506.94899818,0.00035616,2]
[314842034,1708584645567,-500.0,0.00035616,2]
[314842035,1708584645577,-500.0,0.00035616,2]
[314842036,1708584645587,-500.0,0.00035616,2]
[314842037,1708584645597,-500.0,0.00035616,2]
[314842038,1708584645606,-500.0,0.00035616,2]
[314842039,1708584645615,-500.0,0.00035616,2]
[314842040,1708584645627,-1442.34,0.00035616,2]
[314842041,1708584645636,-500.0,0.00035616,2]
[314842042,1708584645646,-567.48,0.00035616,2]
[314842043,1708584645655,-500.0,0.00035616,2]
[314842044,1708584645665,-500.0,0.00035616,2]
[314842045,1708584645674,-500.0,0.00035616,2]
[314842046,1708584645684,-500.0,0.00035616,2]
[314842047,1708584645694,-1043.98,0.00035616,2]
[314842048,1708584645703,-1117.0,0.00035616,2]
[314842049,1708584645713,-500.0,0.00035616,2]
[314842050,1708584645722,-500.0,0.00035616,2]
[314842051,1708584645732,-540.4457428,0.00035616,2]
[314842052,1708584645742,-500.0,0.00035616,2]
[314842053,1708584645753,-500.0,0.00035616,2]
[314842054,1708584645762,-590.49,0.00035616,2]
[314842055,1708584645771,-500.0,0.00035616,2]
[314842056,1708584645781,-500.0,0.00035616,2]
[314842057,1708584645791,-504.14657211,0.00035616,2]
[314842058,1708584645800,-500.0,0.00035616,2]
[314842059,1708584645809,-690.67,0.00035616,2]
[314842060,1708584645819,-500.0,0.00035616,2]
[314842061,1708584645829,-500.0,0.00035616,2]
[314842062,1708584645838,-500.0,0.00035616,2]
[314842063,1708584645848,-695.62,0.00035616,2]
[314842064,1708584645857,-500.0,0.00035616,2]
[314842065,1708584645867,-500.0,0.00035616,2]
[314842066,1708584645876,-512.6687616,0.00035616,2]
[314842067,1708584645886,-500.0,0.00035616,2]
[314842068,1708584645895,-500.0,0.00035616,2]
[314842069,1708584645904,-301.45704444,0.00035616,2]
[314842070,1708584645913,-500.0,0.00035616,2]
[314842071,1708584645923,-500.0,0.00035616,2]
[314842072,1708584645932,-512.58,0.00035616,2]
[314842073,1708584645941,-500.0,0.00035616,2]
[314842074,1708584645950,-500.0,0.00035616,2]
[314842075,1708584645964,-1200.12,0.00035616,2]
[314842077,1708584645974,-500.0,0.00035616,2]
[314842079,1708584645984,-704.97,0.00035616,2]
[314842081,1708584645993,-500.0,0.00035616,2]
[314842083,1708584646003,-500.0,0.00035616,2]
[314842084,1708584646013,-500.0,0.00035616,2]
[314842085,1708584646022,-2487.78,0.00035616,2]
[314842086,1708584646031,-624.35,0.00035616,2]
[314842087,1708584646040,-503.59820512,0.00035616,2]
[314842088,1708584646050,-500.0,0.00035616,2]
[314842089,1708584646059,-500.0,0.00035616,2]
[314842090,1708584646068,-1005.91,0.00035616,2]
[314842091,1708584646077,-505.02430737,0.00035616,2]
[314842092,1708584646086,-625.331227,0.00035616,2]
[314842093,1708584646096,-1242.08,0.00035616,2]
[314842094,1708584646105,-500.0,0.00035616,2]
[314842095,1708584646115,-500.0,0.00035616,2]
[314842096,1708584646124,-500.0,0.00035616,2]
[314842097,1708584646134,-500.0,0.00035616,2]
[314842098,1708584646144,-500.0,0.00035616,2]
[314842099,1708584646153,-2492.29,0.00035616,2]
[314842100,1708584646163,-513.85771234,0.00035616,2]
[314842101,1708584646172,-500.0,0.00035616,2]
[314842102,1708584646182,-500.0,0.00035616,2]
[314842103,1708584646191,-500.0,0.00035616,2]
[314842104,1708584646201,-500.0,0.00035616,2]
[314842105,1708584646211,-1099.48,0.00035616,2]
[314842106,1708584646220,-500.0,0.00035616,2]
[314842107,1708584646230,-500.0,0.00035616,2]
[314842108,1708584646239,-500.0,0.00035616,2]
[314842109,1708584646249,-1051.05,0.00035616,2]
[314842110,1708584646259,-500.0,0.00035616,2]
[314842111,1708584646268,-500.0,0.00035616,2]
[314842112,1708584646277,-500.0,0.00035616,2]
[314842113,1708584646287,-751.03,0.00035616,2]
[314842114,1708584646296,-500.0,0.00035616,2]
[314842115,1708584646306,-690.5,0.00035616,2]
[314842116,1708584646315,-500.0,0.00035616,2]
[314842117,1708584646325,-500.0,0.00035616,2]
[314842118,1708584646335,-500.0,0.00035616,2]
[314842119,1708584646344,-638.74,0.00035616,2]
[314842120,1708584646355,-463.48406193,0.00035616,2]
[314842121,1708584646365,-2547.7,0.00035616,2]
[314842122,1708584646375,-500.0,0.00035616,2]
[314842123,1708584646385,-500.0,0.00035616,2]
[314842124,1708584646400,-1317.89,0.00035616,2]
[314842125,1708584646411,-500.0,0.00035616,2]
[314842126,1708584646422,-500.0,0.00035616,2]
[314842127,1708584646432,-857.38,0.00035616,2]
[314842128,1708584646442,-914.91,0.00035616,2]
[314842129,1708584646453,-500.0,0.00035616,2]
[314842130,1708584646464,-965.92,0.00035616,2]
[314842131,1708584646474,-500.0,0.00035616,2]
[314842132,1708584646485,-500.0,0.00035616,2]
[314842133,1708584646498,-528.81235943,0.00035616,2]
[314842134,1708584646509,-1505.02,0.00035616,2]
[314842135,1708584646521,-500.0,0.00035616,2]
[314842136,1708584646532,-500.0,0.00035616,2]
[314842137,1708584646543,-514.08859613,0.00035616,2]
[314842138,1708584646556,-378.00276817,0.00035616,2]
[314842139,1708584646567,-500.0,0.00035616,2]
[314842140,1708584646578,-1099.31,0.00035616,2]
[314842141,1708584646588,-500.0,0.00035616,2]
[314842142,1708584646599,-1690.12,0.00035616,2]
[314842143,1708584646609,-500.0,0.00035616,2]
[314842144,1708584646619,-500.0,0.00035616,2]
[314842145,1708584646630,-2820.71,0.00035616,2]
[314842146,1708584646640,-500.0,0.00035616,2]
[314842147,1708584646650,-521.63,0.00035616,2]
[314842148,1708584646660,-500.0,0.00035616,2]
[314842149,1708584646675,-500.0,0.00035616,2]
[314842150,1708584646686,-500.0,0.00035616,2]
[314842151,1708584646696,-500.0,0.00035616,2]
[314842152,1708584646707,-500.0,0.00035616,2]
[314842153,1708584646718,-500.0,0.00035616,2]
[314842154,1708584646728,-566.8,0.00035616,2]
[314842155,1708584646739,-817.61,0.00035616,2]
[314842156,1708584646751,-535.41,0.00035616,2]
[314842157,1708584646761,-500.0,0.00035616,2]
[314842158,1708584646771,-500.0,0.00035616,2]
[314842159,1708584646781,-500.0,0.00035616,2]
[314842160,1708584646792,-500.0,0.00035616,2]
[314842161,1708584646802,-500.0,0.00035616,2]
[314842162,1708584646813,-500.0,0.00035616,2]
[314842163,1708584646823,-500.0,0.00035616,2]
[314842164,1708584646833,-1000.0,0.00035616,7]
[314842165,1708584646842,-500.0,0.00035616,2]
[314842166,1708584646853,-3556.27,0.00035616,2]
[314842167,1708584646864,-500.0,0.00035616,2]
[314842168,1708584646874,-170.07872271,0.00035616,2]
[314842169,1708584646884,-1866.68,0.00035616,2]
[314842170,1708584646894,-500.0,0.00035616,2]
[314842171,1708584646904,-500.0,0.00035616,2]
[314842172,1708584646915,-500.0,0.00035616,2]
[314842173,1708584646925,-2749.06,0.00035616,2]
[314842174,1708584646935,-500.0,0.00035616,2]
[314842175,1708584646945,-971.91,0.00035616,2]
[314842176,1708584646955,-1654.36,0.00035616,2]
[314842177,1708584646966,-1221.43,0.00035616,2]
[314842178,1708584646976,-500.0,0.00035616,2]
[314842179,1708584646986,-503.82075192,0.00035616,2]
[314842180,1708584646998,-500.0,0.00035616,2]
[314842181,1708584647010,-541.23,0.00035616,2]
[314842182,1708584647021,-513.85676204,0.00035616,2]
[314842183,1708584647031,-500.0,0.00035616,2]
[314842184,1708584647041,-695.79,0.00035616,2]
[314842185,1708584647051,-1232.75,0.00035616,2]
[314842186,1708584647061,-6598.41,0.00035616,2]
[314842187,1708584647071,-500.0,0.00035616,2]
[314842188,1708584647081,-510.19147109,0.00035616,2]
[314842189,1708584647091,-500.0,0.00035616,2]
[314842190,1708584647101,-500.0,0.00035616,2]
[314842191,1708584647111,-500.0,0.00035616,2]
[314842192,1708584647121,-1167.04,0.00035616,2]
[314842193,1708584647131,-500.0,0.00035616,2]
[314842194,1708584647141,-500.0,0.00035616,2]
[314842195,1708584647151,-500.0,0.00035616,2]
[314842196,1708584647161,-8064.63,0.00035616,2]
[314842197,1708584647171,-500.0,0.00035616,2]
[314842198,1708584647181,-529.76346139,0.00035616,2]
[314842199,1708584647191,-500.0,0.00035616,2]
[314842200,1708584647200,-500.0,0.00035616,2]
[314842201,1708584647210,-515.78,0.00035616,2]
[314842202,1708584647220,-500.0,0.00035616,2]
[314842203,1708584647229,-619.28,0.00035616,2]
[314842204,1708584647239,-823.16405814,0.00035616,2]
[314842205,1708584647301,-3522.28594186,0.00035616,2]
[314842206,1708584647311,-633.35,0.00035616,2]
[314842207,1708584647321,-500.0,0.00035616,2]
[314842208,1708584647330,-500.0,0.00035616,2]
[314842209,1708584647340,-507.66548004,0.00035616,2]
[314842210,1708584647350,-1096.28,0.00035616,2]
[314842211,1708584647359,-500.0,0.00035616,2]
[314842212,1708584647369,-5329.18,0.00035616,2]
[314842213,1708584647379,-500.0,0.00035616,2]
[314842214,1708584647388,-500.0,0.00035616,2]
[314842215,1708584647398,-500.0,0.00035616,2]
[314842216,1708584647408,-790.14,0.00035616,2]
[314842217,1708584647417,-500.0,0.00035616,2]
[314842218,1708584647426,-500.0,0.00035616,2]
[314842219,1708584647436,-541.0,0.00035616,2]
[314842220,1708584647445,-500.0,0.00035616,2]
[314842221,1708584647454,-500.0,0.00035616,2]
[314842222,1708584647464,-500.0,0.00035616,2]
[314842223,1708584647474,-500.0,0.00035616,2]
[314842224,1708584647483,-500.0,0.00035616,2]
[314842225,1708584647493,-11191.58,0.00035616,2]
[314842226,1708584647503,-500.0,0.00035616,2]
[314842227,1708584647513,-500.0,0.00035616,2]
[314842228,1708584647522,-5700.4652598,0.00035616,2]
[314842229,1708584647569,-3198.2047402,0.00035616,2]
[314842230,1708584647578,-3418.74,0.00035616,2]
[314842231,1708584647588,-506.54293067,0.00035616,2]
[314842232,1708584647598,-947.42,0.00035616,2]
[314842233,1708584647608,-500.0,0.00035616,2]
[314842234,1708584647618,-500.0,0.00035616,2]
[314842235,1708584647630,-500.0,0.00035616,2]
[314842236,1708584647640,-500.0,0.00035616,2]
[314842237,1708584647650,-500.0,0.00035616,2]
[314842238,1708584647659,-500.0,0.00035616,2]
[314842239,1708584647669,-343.14751519,0.00035616,2]
[314842240,1708584647683,-156.85248481,0.00035616,2]
[314842241,1708584647693,-500.0,0.00035616,2]
[314842242,1708584647703,-500.0,0.00035616,2]
[314842243,1708584647712,-533.39,0.00035616,2]
[314842244,1708584647722,-1265.43,0.00035616,2]
[314842245,1708584647732,-4602.59,0.00035616,2]
[314842246,1708584647742,-258.11519115,0.00035616,2]
[314842247,1708584647752,-500.0,0.00035616,2]
[314842248,1708584647762,-7750.87,0.00035616,2]
[314842249,1708584647772,-1189.89,0.00035616,2]
[314842250,1708584647782,-744.18,0.00035616,2]
[314842251,1708584647791,-505.0310339,0.00035616,2]
[314842252,1708584647801,-500.0,0.00035616,2]
[314842253,1708584647810,-507.9,0.00035616,2]
[314842254,1708584647824,-511.7,0.00035616,2]
[314842255,1708584647834,-466.11778539,0.00035616,2]
[314842256,1708584647843,-1163.73,0.00035616,2]
[314842257,1708584647854,-500.0,0.00035616,2]
[314842258,1708584647863,-256.35720392,0.00035616,2]
[314842259,1708584647874,-1423.89,0.00035616,2]
[314842260,1708584647884,-1841.48,0.00035616,2]
[314842261,1708584647893,-1376.34,0.00035616,2]
[314842262,1708584647903,-500.0,0.00035616,2]
[314842263,1708584647913,-500.0,0.00035616,2]
[314842264,1708584647923,-92.3899924,0.00035616,2]
[314842265,1708584649654,-150.0,0.0003526,2]
[314842266,1708584649665,-274.60220939,0.00035525,2]
[314842267,1708584649674,-407.6100076,0.00035616,2]
[314842268,1708584649683,-1521.27369736,0.00035616,2]
[314842269,1708584649695,-825.28,0.00035616,2]
[314842270,1708584649706,-411.37630264,0.00035616,2]
[314842271,1708584649716,-272.99366834,0.00035616,2]
[314842272,1708584649725,-71.76102902,0.00035616,2]
[314842273,1708584649737,-157.05861053,0.00035616,2]
[314842274,1708584649748,-158.54138947,0.00035616,2]
[314842275,1708584649760,-848.02444771,0.00035616,2]
[314842276,1708584649771,-775.48416282,0.00035616,2]
[314842277,1708584649781,-500.0,0.00035616,2]
[314842278,1708584649790,-1340.85,0.00035616,2]
[314842279,1708584649799,-500.0,0.00035616,2]
[314842280,1708584649809,-500.0,0.00035616,2]
[314842281,1708584649818,-500.0,0.00035616,2]
[314842282,1708584649827,-615.62577427,0.00035616,2]
[314842283,1708584649838,-759.32,0.00035616,2]
[314842284,1708584649848,-500.0,0.00035616,2]
[314842285,1708584649859,-1442.96,0.00035616,2]
[314842286,1708584649868,-500.0,0.00035616,2]
[314842287,1708584649878,-1851.39,0.00035616,2]
[314842288,1708584649889,-500.0,0.00035616,2]
[314842289,1708584649899,-695.48,0.00035616,2]
[314842290,1708584649908,-561.4,0.00035616,2]
[314842291,1708584649918,-507.31925109,0.00035616,2]
[314842292,1708584649928,-231.39,0.00035616,2]
[314842293,1708584649938,-2279.15,0.00035616,2]
[314842294,1708584649947,-500.0,0.00035616,2]
[314842295,1708584649957,-500.0,0.00035616,2]
[314842296,1708584649967,-500.0,0.00035616,2]
[314842297,1708584649976,-500.0,0.00035616,2]
[314842298,1708584649985,-162.92657955,0.00035616,2]
[314842299,1708584649998,-342.4266493,0.00035616,2]
[314842300,1708584650007,-438.60305365,0.00035616,2]
[314842301,1708584650017,-500.0,0.00035616,2]
[314842302,1708584650026,-1336.47,0.00035616,2]
[314842303,1708584650035,-500.0,0.00035616,2]
[314842304,1708584650045,-2904.9,0.00035616,2]
[314842305,1708584650054,-500.0,0.00035616,2]
[314842306,1708584650063,-500.0,0.00035616,2]
[314842307,1708584650072,-624.78501228,0.00035616,2]
[314842308,1708584650138,-913.38498772,0.00035616,2]
[314842309,1708584650148,-500.0,0.00035616,2]
[314842310,1708584650158,-500.0,0.00035616,2]
[314842311,1708584650167,-500.0,0.00035616,2]
[314842312,1708584650176,-1025.78,0.00035616,2]
[314842313,1708584650185,-500.0,0.00035616,2]
[314842314,1708584650195,-932.02,0.00035616,2]
[314842315,1708584650204,-500.0,0.00035616,2]
[314842316,1708584650213,-8594.47878154,0.00035616,2]
[314842317,1708584650236,-1769.48740449,0.00035616,2]
[314842318,1708584650253,-461.74,0.00035616,2]
[314842319,1708584650598,-1761.94661258,0.00035616,2]
[314842320,1708584650610,-525.90329959,0.00035616,2]
[314842321,1708584650622,-2084.2439018,0.00035616,2]
[314842322,1708584650632,-9346.32,0.00035616,2]
[314842323,1708584650641,-500.0,0.00035616,2]
[314842324,1708584650651,-500.0,0.00035616,2]
[314842325,1708584650660,-507.9360982,0.00035616,2]
[314842326,1708584650672,-398.0739018,0.00035616,2]
[314842327,1708584650682,-721.98,0.00035616,2]
[314842328,1708584650693,-197.30514468,0.00035616,2]
[314842329,1708584650713,-302.69485532,0.00035616,2]
[314842330,1708584650723,-89.06514468,0.00035616,2]
[314842331,1708584650736,-665.24523666,0.00035616,2]
[314842332,1708584650748,-312.52609998,0.00035616,2]
[314842333,1708584651533,-150.0,0.0003561,2]
[314842334,1708584651544,-300.0,0.00035616,2]
[314842335,1708584651560,-7262.75351868,0.00035616,2]
[314842336,1708584651570,-500.0,0.00035616,2]
[314842337,1708584651580,-500.0,0.00035616,2]
[314842338,1708584651591,-500.0,0.00035616,2]
[314842339,1708584651600,-500.0,0.00035616,2]
[314842340,1708584651609,-500.0,0.00035616,2]
[314842341,1708584651618,-500.0,0.00035616,2]
[314842342,1708584651630,-14847.87,0.00035616,2]
[314842343,1708584651639,-500.0,0.00035616,2]
[314842344,1708584651649,-5565.98,0.00035616,2]
[314842345,1708584651658,-500.0,0.00035616,2]
[314842346,1708584651667,-516.5684952,0.00035616,2]
[314842347,1708584651677,-10596.87,0.00035616,2]
[314842348,1708584651687,-500.0,0.00035616,2]
[314842349,1708584651697,-500.0,0.00035616,2]
[314842350,1708584651706,-951.89,0.00035616,2]
[314842351,1708584651716,-500.0,0.00035616,2]
[314842352,1708584651727,-500.0,0.00035616,2]
[314842353,1708584651746,-500.0,0.00035616,2]
[314842354,1708584651766,-500.0,0.00035616,2]
[314842355,1708584651775,-504.01149215,0.00035616,2]
[314842356,1708584651784,-598.53,0.00035616,2]
[314842357,1708584651793,-1466.25,0.00035616,2]
[314842358,1708584651802,-500.0,0.00035616,2]
[314842359,1708584651811,-500.0,0.00035616,2]
[314842360,1708584651821,-1188.41,0.00035616,2]
[314842361,1708584651830,-500.0,0.00035616,2]
[314842362,1708584651839,-500.0,0.00035616,2]
[314842363,1708584651849,-500.1617632,0.00035616,2]
[314842364,1708584651858,-513.11546337,0.00035616,2]
[314842365,1708584651868,-527.29,0.00035616,2]
[314842366,1708584651877,-500.0,0.00035616,2]
[314842367,1708584651886,-500.0,0.00035616,2]
[314842368,1708584651896,-1068.67,0.00035616,2]
[314842369,1708584651905,-722.94,0.00035616,2]
[314842370,1708584651914,-500.0,0.00035616,2]
[314842371,1708584651923,-500.0,0.00035616,2]
[314842372,1708584651933,-775.8,0.00035616,2]
[314842373,1708584651942,-500.0,0.00035616,2]
[314842374,1708584651951,-712.83,0.00035616,2]
[314842375,1708584651960,-500.0,0.00035616,2]
[314842376,1708584651969,-500.0,0.00035616,2]
[314842377,1708584651979,-500.0,0.00035616,2]
[314842378,1708584651988,-500.0,0.00035616,2]
[314842379,1708584651998,-500.0,0.00035616,2]
[314842380,1708584652007,-8023.12,0.00035616,2]
[314842381,1708584652017,-500.0,0.00035616,2]
[314842382,1708584652026,-500.0,0.00035616,2]
[314842383,1708584652035,-901.42,0.00035616,2]
[314842384,1708584652044,-3428.45,0.00035616,2]
[314842385,1708584652053,-624.78186384,0.00035616,2]
[314842386,1708584652062,-500.0,0.00035616,2]
[314842387,1708584652072,-2108.01,0.00035616,2]
[314842388,1708584652082,-500.0,0.00035616,2]
[314842389,1708584652091,-500.0,0.00035616,2]
[314842390,1708584652107,-5338.27,0.00035616,2]
[314842391,1708584652121,-1848.99,0.00035616,2]
[314842392,1708584652134,-500.0,0.00035616,2]
[314842393,1708584652145,-500.0,0.00035616,2]
[314842394,1708584652159,-529.12,0.00035616,2]
[314842395,1708584652174,-500.0,0.00035616,2]
[314842396,1708584652187,-500.0,0.00035616,2]
[314842397,1708584652201,-500.0,0.00035616,2]
[314842398,1708584652215,-500.0,0.00035616,2]
[314842399,1708584652228,-473.79118417,0.00035616,2]
[314842400,1708584652238,-3438.84,0.00035616,2]
[314842401,1708584652253,-506.30573806,0.00035616,2]
[314842402,1708584652266,-500.0,0.00035616,2]
[314842403,1708584652280,-500.0,0.00035616,2]
[314842404,1708584652292,-1132.69,0.00035616,2]
[314842405,1708584652305,-500.0,0.00035616,2]
[314842406,1708584652318,-500.0,0.00035616,2]
[314842407,1708584652328,-500.0,0.00035616,2]
[314842408,1708584652341,-45774.17,0.00035616,2]
[314842409,1708584652354,-1242.09,0.00035616,2]
[314842410,1708584652369,-507.2717919,0.00035616,2]
[314842411,1708584652380,-500.0,0.00035616,2]
[314842412,1708584652392,-500.0,0.00035616,2]
[314842413,1708584652405,-500.0,0.00035616,2]
[314842414,1708584652418,-500.0,0.00035616,2]
[314842415,1708584652431,-1017.08,0.00035616,2]
[314842416,1708584652445,-2632.48,0.00035616,2]
[314842417,1708584652460,-514.77,0.00035616,2]
[314842418,1708584652475,-500.0,0.00035616,2]
[314842419,1708584652486,-500.0,0.00035616,2]
[314842420,1708584652497,-509.22,0.00035616,2]
[314842421,1708584652507,-500.0,0.00035616,2]
[314842422,1708584652519,-4439.5,0.00035616,2]
[314842423,1708584652532,-500.12961303,0.00035616,2]
[314842424,1708584652545,-664.74,0.00035616,2]
[314842425,1708584652560,-500.0,0.00035616,2]
[314842426,1708584652571,-500.0,0.00035616,2]
[314842427,1708584652582,-775.88,0.00035616,2]
[314842428,1708584652594,-500.0,0.00035616,2]
[314842429,1708584652606,-1064.8,0.00035616,2]
[314842430,1708584652617,-432.83983988,0.00035616,2]
[314842431,1708584652634,-500.0,0.00035616,2]
[314842432,1708584652646,-597.9,0.00035616,2]
[314842433,1708584652657,-1470.06,0.00035616,2]
[314842434,1708584652668,-500.0,0.00035616,2]
[314842435,1708584652679,-2013.02,0.00035616,2]
[314842436,1708584652690,-658.96,0.00035616,2]
[314842437,1708584652702,-500.0,0.00035616,2]
[314842438,1708584652713,-500.0,0.00035616,2]
[314842439,1708584652724,-500.0,0.00035616,2]
[314842440,1708584652735,-1681.95,0.00035616,2]
[314842441,1708584652747,-561.06,0.00035616,2]
[314842442,1708584652758,-512.70683269,0.00035616,2]
[314842443,1708584652770,-500.0,0.00035616,2]
[314842444,1708584652781,-7845.05,0.00035616,2]
[314842445,1708584652793,-500.0,0.00035616,2]
[314842446,1708584652805,-833.22,0.00035616,2]
[314842447,1708584652816,-507.80163801,0.00035616,2]
[314842448,1708584652828,-500.0,0.00035616,2]
[314842449,1708584652840,-500.0,0.00035616,2]
[314842450,1708584652853,-500.0,0.00035616,2]
[314842451,1708584652865,-500.0,0.00035616,2]
[314842452,1708584652877,-830.09,0.00035616,2]
[314842453,1708584652889,-2633.2,0.00035616,2]
[314842454,1708584652901,-500.0,0.00035616,2]
[314842455,1708584652912,-500.0,0.00035616,2]
[314842456,1708584652924,-500.0,0.00035616,2]
[314842457,1708584652935,-500.0,0.00035616,2]
[314842458,1708584652946,-2904.58,0.00035616,2]
[314842459,1708584652957,-500.0,0.00035616,2]
[314842460,1708584652969,-500.0,0.00035616,2]
[314842461,1708584652981,-787.78,0.00035616,2]
[314842462,1708584652993,-2741.56,0.00035616,2]
[314842463,1708584653006,-823.83,0.00035616,2]
[314842464,1708584653017,-503.86845636,0.00035616,2]
[314842465,1708584653029,-1867.31,0.00035616,2]
[314842466,1708584653040,-500.0,0.00035616,2]
[314842467,1708584653052,-788.03,0.00035616,2]
[314842468,1708584653064,-502.18024781,0.00035616,2]
[314842469,1708584653076,-500.0,0.00035616,2]
[314842470,1708584653088,-1710.46,0.00035616,2]
[314842471,1708584653099,-1410.54,0.00035616,2]
[314842472,1708584653110,-500.0,0.00035616,2]
[314842473,1708584653121,-500.0,0.00035616,2]
[314842474,1708584653132,-722.89,0.00035616,2]
[314842475,1708584653144,-2226.79,0.00035616,2]
[314842476,1708584653155,-500.0,0.00035616,2]
[314842477,1708584653167,-527.71,0.00035616,2]
[314842478,1708584653178,-500.0,0.00035616,2]
[314842479,1708584653190,-1715.42,0.00035616,2]
[314842480,1708584653202,-2157.31,0.00035616,2]
[314842481,1708584653214,-2443.82,0.00035616,2]
[314842482,1708584653225,-1122.55,0.00035616,2]
[314842483,1708584653237,-500.0,0.00035616,2]
[314842484,1708584653249,-500.0,0.00035616,2]
[314842485,1708584653261,-721.24,0.00035616,2]
[314842486,1708584653272,-500.0,0.00035616,2]
[314842487,1708584653284,-500.0,0.00035616,2]
[314842488,1708584653297,-519.95,0.00035616,2]
[314842489,1708584653308,-1207.7,0.00035616,2]
[314842490,1708584653320,-500.0,0.00035616,2]
[314842491,1708584653331,-4176.38,0.00035616,2]
[314842492,1708584653342,-500.0,0.00035616,2]
[314842493,1708584653353,-1590.34,0.00035616,2]
[314842494,1708584653366,-500.0,0.00035616,2]
[314842495,1708584653379,-500.0,0.00035616,2]
[314842496,1708584653390,-935.53,0.00035616,2]
[314842497,1708584653403,-500.0,0.00035616,2]
[314842498,1708584653414,-500.0,0.00035616,2]
[314842499,1708584653426,-500.0,0.00035616,2]
[314842500,1708584653438,-1379.69,0.00035616,2]
[314842501,1708584653450,-500.0,0.00035616,2]
[314842502,1708584653462,-2932.01,0.00035616,2]
[314842503,1708584653473,-13939.87,0.00035616,2]
[314842504,1708584653485,-510.76,0.00035616,2]
[314842505,1708584653496,-784.69,0.00035616,2]
[314842506,1708584653507,-500.0,0.00035616,2]
[314842507,1708584653519,-500.0,0.00035616,2]
[314842508,1708584653530,-500.0,0.00035616,2]
[314842509,1708584653541,-20532.05,0.00035616,2]
[314842510,1708584653553,-2648.75,0.00035616,2]
[314842511,1708584653566,-1393.95,0.00035616,2]
[314842512,1708584653578,-967.64,0.00035616,2]
[314842513,1708584653589,-500.0,0.00035616,2]
[314842514,1708584653600,-500.0,0.00035616,2]
[314842515,1708584653611,-3780.77,0.00035616,2]
[314842516,1708584653622,-500.0,0.00035616,2]
[314842517,1708584653634,-535.95244845,0.00035616,2]
[314842518,1708584653645,-500.0,0.00035616,2]
[314842519,1708584653656,-500.0,0.00035616,2]
[314842520,1708584653667,-500.0,0.00035616,2]
[314842521,1708584653679,-13782.87,0.00035616,2]
[314842522,1708584653690,-500.0,0.00035616,2]
[314842523,1708584653702,-500.0,0.00035616,2]
[314842524,1708584653714,-629.09,0.00035616,2]
[314842525,1708584653725,-500.0,0.00035616,2]
[314842526,1708584653737,-519.48,0.00035616,2]
[314842527,1708584653749,-500.0,0.00035616,2]
[314842528,1708584653760,-1658.67,0.00035616,2]
[314842529,1708584653771,-3236.32,0.00035616,2]
[314842530,1708584653782,-791.64,0.00035616,2]
[314842531,1708584653794,-500.0,0.00035616,2]
[314842532,1708584653805,-501.8,0.00035616,2]